{"text_format":"1","workbook":"xlsx","n_sheets":5,"sheets":["skupiny","umisteni_finale","utecha_umisteni_6","staršíá_dorost","makro"],"not_rendered":{"charts":0,"images":0,"macros":1,"external_links":1,"defined_names":3,"comments":0,"pivot_tables":0},"unopened":[],"bounds":{"document_bytes":16777216,"sheet_cells":100000,"rows_first":2000,"rows_last":500,"rows_between":2000,"halvings":0,"cell_chars":16384,"cell_head_chars":4096},"cells_cut":0,"cells_raw":0,"read":"whole","date_system":"1900"}

{"sheet":"skupiny","index":0,"n_rows":51,"n_cols":10,"rows_kept":51,"cut":false,"hidden":false,"merged":[[0,0,0,9],[3,0,3,1],[5,1,5,2],[6,1,6,2],[2,0,2,3],[7,1,7,2],[8,1,8,2],[11,1,11,2],[12,1,12,2],[13,1,13,2],[14,1,14,2],[17,1,17,2],[18,1,18,2],[19,1,19,2],[20,1,20,2],[23,1,23,2],[24,1,24,2],[25,1,25,2],[26,1,26,2],[29,1,29,2],[30,1,30,2],[31,1,31,2],[32,1,32,2],[35,1,35,2],[36,1,36,2],[37,1,37,2],[38,1,38,2],[41,1,41,2],[42,1,42,2],[43,1,43,2],[44,1,44,2],[47,1,47,2],[48,1,48,2],[49,1,49,2],[50,1,50,2]]}
["2. KBT dorostu a starších žáků"]
[]
["Hala SKST Liberec, 19. 6. 2021"]
["základní skupiny"]
[null,"skupina A","škola/klub",1,2,3,4,"sety","b","m"]
[1,"Motlík Lukáš  (Česká Lípa Loko)",null,"xxx","3:0","3:0","3:0",null,6,1]
[2,"Holasová Sofie  (Liberec SKST)",null,"0:3","xxx","3:0","3:1",null,5,2]
[3,"Opluštil Jan  (Turnov STAR Sokol)",null,"0:3","0:3","xxx","3:0",null,4,3]
[4,"Kobosil Tomáš  (Liberec SKST)",null,"0:3","1:3","0:3","xxx",null,3,4]
[]
[null,"skupina B","škola/klub",1,2,3,4,"sety","b","m"]
[1,"Kosař Václav  (Turnov Sokol)",null,"xxx","3:0","3:0","3:0",null,6,1]
[2,"Kos Vincent  (Liberec SKST)",null,"0:3","xxx","3:0","3:1",null,5,2]
[3,"Fokt David  (Liberec KMST)",null,"0:3","0:3","xxx","1:3",null,3,4]
[4,"Porš Zdeněk  (Liberec KMST)",null,"0:3","1:3","3:1","xxx",null,4,3]
[]
[null,"Skupina C","škola/klub",1,2,3,4,"sety","b","m"]
[1,"Wolf Filip  (Liberec SKST)",null,"xxx","3:0","3:0","3:0",null,6,1]
[2,"Šedo Pavel  (Liberec KMST)",null,"0:3","xxx","3:0","3:1",null,5,2]
[3,"Komárek Patrik  (Kamenický Šenov AST)",null,"0:3","0:3","xxx","2:3",null,3,4]
[4,"Rambousek Jan  (Chrastava Spartak)",null,"0:3","1:3","3:2","xxx",null,4,3]
[]
[null,"Skupina D","škola/klub",1,2,3,4,"sety","b","m"]
[1,"Korpová Romana  (Liberec SKST)",null,"xxx","3:1","3:0","3:0",null,6,1]
[2,"Kahan Ondřej  (Jablonec Bižuterie)",null,"1:3","xxx","3:0","3:0",null,5,2]
[3,"Flégr Samuel  (Liberec SKST)",null,"0:3","0:3","xxx","2:3",null,3,4]
[4,"Böhm Marek  (Liberec KMST)",null,"0:3","0:3","3:2","xxx",null,4,3]
[]
[null,"Skupina E","škola/klub",1,2,3,4,"sety","b","m"]
[1,"Komárek Filip  (Kamenický Šenov AST)",null,"xxx","0:3","3:0","3:0",null,5,2]
[2,"Němec Štěpán  (Liberec SKST)",null,"3:0","xxx","3:0","3:0",null,6,1]
[3,"Krotilová Adéla  (Liberec SKST)",null,"0:3","0:3","xxx","3:2",null,4,3]
[4,"Posledník Matouš  (Liberec KMST)",null,"0:3","0:3","2:3","xxx",null,3,4]
[]
[null,"Skupina F","škola/klub",1,2,3,4,"sety","b","m"]
[1,"Rek Petr  (TJ Loko Česká Lípa)",null,"xxx","0:3","3:1","3:0",null,5,2]
[2,"Harries Charlie  (Liberec SKST)",null,"3:0","xxx","3:0","3:0",null,6,1]
[3,"Klustová Tereza  (Chrastava Spartak)",null,"1:3","0:3","xxx","2:3",null,3,4]
[4,"Kuntoš Filip  (Liberec SKST)",null,"0:3","0:3","3:2","xxx",null,4,3]
[]
[null,"skupina G","škola/klub",1,2,3,4,"sety","b","m"]
[1,null,null,"xxx",null,null,null,null,0,""]
[2,null,null,":","xxx",null,null,null,0,""]
[3,null,null,":",":","xxx",null,null,0,""]
[4,null,null,":",":",":","xxx",null,0,""]
[]
[null,"skupina H","škola/klub",1,2,3,4,"sety","b","m"]
[1,null,null,"xxx",null,null,null,null,0,""]
[2,null,null,":","xxx",null,null,null,0,""]
[3,null,null,":",":","xxx",null,null,0,""]
[4,null,null,":",":",":","xxx",null,0,""]

{"sheet":"umisteni_finale","index":1,"n_rows":66,"n_cols":4,"rows_kept":66,"cut":false,"hidden":false,"merged":[[0,1,0,2],[1,1,1,2],[2,1,2,2]]}
["Název soutěže:","2. KBT dorostu a starších žáků"]
[]
["Kategorie, den","Hala SKST Liberec, 19. 6. 2021"]
["o 1.- 12. místo "]
[null,"Motlík Lukáš  (Česká Lípa Loko)"]
[null,null,"Motlík Lukáš  (Česká Lípa Loko)"]
["Kos Vincent  (Liberec SKST)",null,"3:0"]
[null,"Kahan Ondřej  (Jablonec Bižuterie)"]
["Kahan Ondřej  (Jablonec Bižuterie)","3:1"]
[null,null,null,"Němec Štěpán  (Liberec SKST)"]
["Němec Štěpán  (Liberec SKST)",null,null,"3:0"]
[null,"Němec Štěpán  (Liberec SKST)"]
["Rek Petr  (TJ Loko Česká Lípa)","3:0"]
[null,null,"Němec Štěpán  (Liberec SKST)"]
["",null,"3:0"]
[null,"Wolf Filip  (Liberec SKST)"]
[null,null,null,"Němec Štěpán  (Liberec SKST)"]
[null,null,null,"3:0"]
[null,"Korpová Romana  (Liberec SKST)"]
[null,null,"Harries Charlie  (Liberec SKST)"]
["Holasová Sofie  (Liberec SKST)",null,"3:1"]
[null,"Harries Charlie  (Liberec SKST)"]
["Harries Charlie  (Liberec SKST)","3:0"]
[null,null,null,"Harries Charlie  (Liberec SKST)"]
["Komárek Filip  (Kamenický Šenov AST)",null,null,"3:1"]
[null,"Komárek Filip  (Kamenický Šenov AST)"]
["Šedo Pavel  (Liberec KMST)","3:1"]
[null,null,"Kosař Václav  (Turnov Sokol)"]
["",null,"3:1"]
[null,"Kosař Václav  (Turnov Sokol)"]
[]
["o 9. - 12. místo"]
["Kos Vincent  (Liberec SKST)"]
[null,"Rek Petr  (TJ Loko Česká Lípa)"]
[null,"3:0"]
["Rek Petr  (TJ Loko Česká Lípa)"]
[null,null,"Rek Petr  (TJ Loko Česká Lípa)"]
[null,null,"3:1"]
["Holasová Sofie  (Liberec SKST)"]
[null,"Holasová Sofie  (Liberec SKST)"]
[null,"3:1"]
["Šedo Pavel  (Liberec KMST)"]
[null,""]
["5. - 8. místo"]
["Kahan Ondřej  (Jablonec Bižuterie)",null,""]
[null,"Wolf Filip  (Liberec SKST)"]
["Wolf Filip  (Liberec SKST)","3:1"]
[null,null,"Wolf Filip  (Liberec SKST)"]
["Korpová Romana  (Liberec SKST)",null,"3:0"]
[null,"Korpová Romana  (Liberec SKST)"]
["Komárek Filip  (Kamenický Šenov AST)","3:2"]
[]
["o 3. - 4. místo"]
["Motlík Lukáš  (Česká Lípa Loko)"]
[null,"Motlík Lukáš  (Česká Lípa Loko)"]
["Kosař Václav  (Turnov Sokol)","3:0"]
[]
["o 7. -8. místo"]
["Kahan Ondřej  (Jablonec Bižuterie)"]
[null,"Komárek Filip  (Kamenický Šenov AST)"]
["Komárek Filip  (Kamenický Šenov AST)","3:0"]
[]
["o 11. - 12. místo"]
["Kos Vincent  (Liberec SKST)"]
[null,"Kos Vincent  (Liberec SKST)"]
["Šedo Pavel  (Liberec KMST)","3:0"]

{"sheet":"utecha_umisteni_6","index":2,"n_rows":65,"n_cols":4,"rows_kept":65,"cut":false,"hidden":false,"merged":[[0,1,0,2],[1,1,1,2],[2,1,2,2]]}
["Název soutěže:","2. KBT dorostu a starších žáků"]
[]
["Kategorie, den","Hala SKST Liberec, 19. 6. 2021"]
["o 13. - 24. místo"]
[null,"Kuntoš Filip  (Liberec SKST)"]
[null,null,"Kuntoš Filip  (Liberec SKST)"]
["Kobosil Tomáš  (Liberec SKST)",null,"3:0"]
[null,"Fokt David  (Liberec KMST)"]
["Fokt David  (Liberec KMST)","3:0"]
[null,null,null,"Rambousek Jan  (Chrastava Spartak)"]
["Böhm Marek  (Liberec KMST)",null,null,"3:0"]
[null,"Posledník Matouš  (Liberec KMST)"]
["Posledník Matouš  (Liberec KMST)","3:0"]
[null,null,"Rambousek Jan  (Chrastava Spartak)"]
["",null,"3:1"]
[null,"Rambousek Jan  (Chrastava Spartak)"]
[null,null,null,"Rambousek Jan  (Chrastava Spartak)"]
[null,null,null,"3:2"]
[null,"Krotilová Adéla  (Liberec SKST)"]
[null,null,"Komárek Patrik  (Kamenický Šenov AST)"]
["Komárek Patrik  (Kamenický Šenov AST)",null,"3:1"]
[null,"Komárek Patrik  (Kamenický Šenov AST)"]
["Porš Zdeněk  (Liberec KMST)","3:0"]
[null,null,null,"Klustová Tereza  (Chrastava Spartak)"]
["Flégr Samuel  (Liberec SKST)",null,null,"3:1"]
[null,"Klustová Tereza  (Chrastava Spartak)"]
["Klustová Tereza  (Chrastava Spartak)","3:0"]
[null,null,"Klustová Tereza  (Chrastava Spartak)"]
["",null,"3:0"]
[null,"Opluštil Jan  (Turnov STAR Sokol)"]
["o 21. - 24. místo"]
["Kobosil Tomáš  (Liberec SKST)"]
[null,"Kobosil Tomáš  (Liberec SKST)"]
[null,"3:0"]
["Böhm Marek  (Liberec KMST)"]
[null,null,"Flégr Samuel  (Liberec SKST)"]
[null,null,"3:2"]
["Porš Zdeněk  (Liberec KMST)"]
[null,"Flégr Samuel  (Liberec SKST)"]
[null,"3:0"]
["Flégr Samuel  (Liberec SKST)"]
[]
["o 17. - 20.  místo"]
["Fokt David  (Liberec KMST)",null,""]
[null,"Posledník Matouš  (Liberec KMST)"]
["Posledník Matouš  (Liberec KMST)","3:0"]
[null,null,"Posledník Matouš  (Liberec KMST)"]
["Krotilová Adéla  (Liberec SKST)",null,"3:0"]
[null,"Krotilová Adéla  (Liberec SKST)"]
["Opluštil Jan  (Turnov STAR Sokol)","3:0"]
[]
["o 15. - 16. místo"]
["Kuntoš Filip  (Liberec SKST)"]
[null,"Kuntoš Filip  (Liberec SKST)"]
["Komárek Patrik  (Kamenický Šenov AST)","3:1"]
[]
["o 19. - 20. místo"]
["Fokt David  (Liberec KMST)"]
[null,"Kuntoš Filip  (Liberec SKST)"]
["Opluštil Jan  (Turnov STAR Sokol)","3:1"]
[]
["o 23. - 24. místo"]
["Böhm Marek  (Liberec KMST)"]
[null,"Kuntoš Filip  (Liberec SKST)"]
["Porš Zdeněk  (Liberec KMST)","3:1"]

{"sheet":"staršíá_dorost","index":3,"n_rows":108,"n_cols":6,"rows_kept":108,"cut":false,"hidden":false,"merged":[[0,0,0,3]]}
["starší a dosrost"]
[]
[null,"Adamíra Jiří",2003,"Tatobity Sokol",null,{"$f":"B3&\"  \"&\"(\"&D3&\")\"","v":"Adamíra Jiří  (Tatobity Sokol)"}]
[null,"Adamíra Šimon",2007,"Tatobity Sokol",null,{"$f":"B4&\"  \"&\"(\"&D4&\")\"","v":"Adamíra Šimon  (Tatobity Sokol)"}]
[null,"Augustin Filip",2004,"Turnov STAR Sokol",null,"Augustin Filip  (Turnov STAR Sokol)"]
[null,"Bartoň David",2007,"Liberec SKST",null,"Bartoň David  (Liberec SKST)"]
[null,"Bitman Matěj",2007,"Liberec SKST",null,"Bitman Matěj  (Liberec SKST)"]
[null,"Böhm Marek",2006,"Liberec KMST",null,"Böhm Marek  (Liberec KMST)"]
[null,"Brož Kryštof",2005,"Turnov Sokol",null,"Brož Kryštof  (Turnov Sokol)"]
[null,"Brunclík Jan",2005,"Smržovka Spartak",null,"Brunclík Jan  (Smržovka Spartak)"]
[null,"Bříza Jakub",2005,"Turnov Sokol",null,"Bříza Jakub  (Turnov Sokol)"]
[null,"Buriánek Jan",2005,"Tatobity Sokol",null,"Buriánek Jan  (Tatobity Sokol)"]
[null,"Čermák Bohuslav",2007,"Liberec SKST",null,"Čermák Bohuslav  (Liberec SKST)"]
[null,"Černý Jonáš",2004,"Smržovka Spartak",null,"Černý Jonáš  (Smržovka Spartak)"]
[null,"Dědíková Barbora",2006,"Chrastava Spartak",null,"Dědíková Barbora  (Chrastava Spartak)"]
[null,"Doležalová Monika",2005,"Hrádek TTC",null,"Doležalová Monika  (Hrádek TTC)"]
[null,"Faltus Dominik",2008,"Liberec SKST",null,"Faltus Dominik  (Liberec SKST)"]
[null,"Fanta Oliver",2005,"Turnov Sokol",null,"Fanta Oliver  (Turnov Sokol)"]
[null,"Fanta Vilém",2007,"Turnov STAR Sokol",null,"Fanta Vilém  (Turnov STAR Sokol)"]
[null,"Fiřt Jan",2009,"Liberec SKST",null,"Fiřt Jan  (Liberec SKST)"]
[null,"Flégr Samuel",2006,"Liberec SKST",null,"Flégr Samuel  (Liberec SKST)"]
[null,"Fokt David",2007,"Liberec KMST",null,"Fokt David  (Liberec KMST)"]
[null,"Franců Matyáš",2003,"Turnov STAR Sokol",null,"Franců Matyáš  (Turnov STAR Sokol)"]
[null,"Gabriel Jan",2007,"Česká Lípa Loko",null,"Gabriel Jan  (Česká Lípa Loko)"]
[null,"Harries Charlie",2008,"Liberec SKST",null,"Harries Charlie  (Liberec SKST)"]
[null,"Heřman David",2006,"Jablonec Bižuterie",null,"Heřman David  (Jablonec Bižuterie)"]
[null,"Holasová Sofie",2007,"Liberec SKST",null,"Holasová Sofie  (Liberec SKST)"]
[null,"Hůlková Anna",2005,"Liberec SKST",null,"Hůlková Anna  (Liberec SKST)"]
[null,"Jandák Jan",2004,"Liberec SKST",null,"Jandák Jan  (Liberec SKST)"]
[null,"Kahan Ondřej",2007,"Jablonec Bižuterie",null,"Kahan Ondřej  (Jablonec Bižuterie)"]
[null,"Kaplánek Martin",2004,"Česká Lípa Loko",null,"Kaplánek Martin  (Česká Lípa Loko)"]
[null,"Kašínská Michaela",2007,"Chrastava Spartak",null,"Kašínská Michaela  (Chrastava Spartak)"]
[null,"Kašubiaková Viktorie",2004,"Nový Bor Jiskra",null,"Kašubiaková Viktorie  (Nový Bor Jiskra)"]
[null,"Klegr Samuel",2006,"Liberec KMST",null,"Klegr Samuel  (Liberec KMST)"]
[null,"Klustová Tereza",2007,"Chrastava Spartak",null,"Klustová Tereza  (Chrastava Spartak)"]
[null,"Kobosil Tomáš",2007,"Liberec SKST",null,"Kobosil Tomáš  (Liberec SKST)"]
[null,"Komárek Filip",2005,"Kamenický Šenov AST",null,"Komárek Filip  (Kamenický Šenov AST)"]
[null,"Komárek Patrik",2008,"Kamenický Šenov AST",null,"Komárek Patrik  (Kamenický Šenov AST)"]
[null,"Korp Petr",2003,"Liberec SKST",null,"Korp Petr  (Liberec SKST)"]
[null,"Korpová Romana",2007,"Liberec SKST",null,"Korpová Romana  (Liberec SKST)"]
[null,"Kořínková Lucie",2005,"Tatobity Sokol",null,"Kořínková Lucie  (Tatobity Sokol)"]
[null,"Kos Vincent",2009,"Liberec SKST",null,"Kos Vincent  (Liberec SKST)"]
[null,"Kosař Václav",2003,"Turnov Sokol",null,"Kosař Václav  (Turnov Sokol)"]
[null,"Košťák Matěj",2007,"Jablonec Bižuterie",null,"Košťák Matěj  (Jablonec Bižuterie)"]
[null,"Král Martin",2007,"Kamenický Šenov Jiskra",null,"Král Martin  (Kamenický Šenov Jiskra)"]
[null,"Král Štěpán",2008,"Kamenický Šenov Jiskra",null,"Král Štěpán  (Kamenický Šenov Jiskra)"]
[null,"Kratochvíl Václav",2003,"Česká Lípa Loko",null,"Kratochvíl Václav  (Česká Lípa Loko)"]
[null,"Krotilová Adéla",2007,"Liberec SKST",null,"Krotilová Adéla  (Liberec SKST)"]
[null,"Kuntoš Filip",2006,"Liberec SKST",null,"Kuntoš Filip  (Liberec SKST)"]
[null,"Lenárt Matěj",2007,"Liberec SKST",null,"Lenárt Matěj  (Liberec SKST)"]
[null,"Majcher Patrik",2004,"Kamenický Šenov Jiskra",null,"Majcher Patrik  (Kamenický Šenov Jiskra)"]
[null,"Malý Vojtěch",2004,"Tatobity Sokol",null,"Malý Vojtěch  (Tatobity Sokol)"]
[null,"Mencl Kryštof",2004,"Turnov Sokol",null,"Mencl Kryštof  (Turnov Sokol)"]
[null,"Mlejnek Jakub",2004,"Tatobity Sokol",null,"Mlejnek Jakub  (Tatobity Sokol)"]
[null,"Morávek Michal",2005,"Košťálov Sokol",null,"Morávek Michal  (Košťálov Sokol)"]
[null,"Motlík Lukáš",2004,"Česká Lípa Loko",null,"Motlík Lukáš  (Česká Lípa Loko)"]
[null,"Motlík Tomáš",2003,"Česká Lípa Loko",null,"Motlík Tomáš  (Česká Lípa Loko)"]
[null,"Nacházel Tadeáš",2007,"Kamenický Šenov Jiskra",null,"Nacházel Tadeáš  (Kamenický Šenov Jiskra)"]
[null,"Naiman Daniel",2007,"Liberec SKST",null,"Naiman Daniel  (Liberec SKST)"]
[null,"Naiman Seweryn",2005,"Hrádek TTC",null,"Naiman Seweryn  (Hrádek TTC)"]
[null,"Němec Štěpán",2008,"Liberec SKST",null,"Němec Štěpán  (Liberec SKST)"]
[null,"Němečková Lenka",2005,"Kamenický Šenov Jiskra",null,"Němečková Lenka  (Kamenický Šenov Jiskra)"]
[null,"Nohejl Martin",2005,"Frýdlant  ST",null,"Nohejl Martin  (Frýdlant  ST)"]
[null,"Nohejl Matěj",2005,"Frýdlant ST",null,"Nohejl Matěj  (Frýdlant ST)"]
[null,"Nohejl Václav",2005,"Frýdlant ST",null,"Nohejl Václav  (Frýdlant ST)"]
[null,"Nosek Jaroslav",2006,"Košťálov Sokol",null,"Nosek Jaroslav  (Košťálov Sokol)"]
[null,"Novák Alan",2004,"Turnov STAR Sokol",null,"Novák Alan  (Turnov STAR Sokol)"]
[null,"Nováková Tereza",2006,"Chrastava Spartak",null,{"$f":"B68&\"  \"&\"(\"&D68&\")\"","v":"Nováková Tereza  (Chrastava Spartak)"}]
[null,"Opluštil Jan",2006,"Turnov STAR Sokol",null,"Opluštil Jan  (Turnov STAR Sokol)"]
[null,"Ortová Pavlína",2009,"Liberec SKST",null,"Ortová Pavlína  (Liberec SKST)"]
[null,"Pařízková Monika",2005,"Liberec SKST",null,"Pařízková Monika  (Liberec SKST)"]
[null,"Perný Matěj",2003,"Liberec SKST",null,"Perný Matěj  (Liberec SKST)"]
[null,"Petrusová Natálie",2005,"Kamenický Šenov Jiskra",null,"Petrusová Natálie  (Kamenický Šenov Jiskra)"]
[null,"Pícha Štěpán",2005,"Nový Bor Jiskra",null,"Pícha Štěpán  (Nový Bor Jiskra)"]
[null,"Podzimková Anna",2006,"Nová Ves Sokol",null,"Podzimková Anna  (Nová Ves Sokol)"]
[null,"Porš Zdeněk",2005,"Liberec KMST",null,"Porš Zdeněk  (Liberec KMST)"]
[null,"Posledník Matouš",2005,"Liberec KMST",null,"Posledník Matouš  (Liberec KMST)"]
[null,"Prousková Barbora",2007,"Kamenický Šenov AST",null,"Prousková Barbora  (Kamenický Šenov AST)"]
[null,"Rambousek Jan",2008,"Chrastava Spartak",null,"Rambousek Jan  (Chrastava Spartak)"]
[null,"Rek Petr",2006,"TJ Loko Česká Lípa",null,"Rek Petr  (TJ Loko Česká Lípa)"]
[null,"Reslerová Věra",2003,"Liberec SKST",null,"Reslerová Věra  (Liberec SKST)"]
[null,"Richterová Adéla",2004,"Liberec SKST",null,"Richterová Adéla  (Liberec SKST)"]
[null,"Röhrich Matyáš",2006,"TJ Spartak Smržovka",null,"Röhrich Matyáš  (TJ Spartak Smržovka)"]
[null,"Rosu Alexandru",2005,"Liberec SKST",null,"Rosu Alexandru  (Liberec SKST)"]
[null,"Ryška Tomáš",2003,"Liberec KMST",null,"Ryška Tomáš  (Liberec KMST)"]
[null,"Stach Vojtěch",2007,"Turnov Sokol",null,"Stach Vojtěch  (Turnov Sokol)"]
[null,"Svatý Karel",2006,"TJ Spartak Smržovka",null,"Svatý Karel  (TJ Spartak Smržovka)"]
[null,"Svatý Marek",2006,"TJ Spartak Smržovka",null,"Svatý Marek  (TJ Spartak Smržovka)"]
[null,"Sýkora Jiří",2003,"Liberec SKST",null,"Sýkora Jiří  (Liberec SKST)"]
[null,"Šálený Petr",2006,"TJ Sokol Březno",null,"Šálený Petr  (TJ Sokol Březno)"]
[null,"Šedo Pavel",2005,"Liberec KMST",null,"Šedo Pavel  (Liberec KMST)"]
[null,"Šillerová Andrea",2005,"TJ Jiskra Kam. Šenov",null,"Šillerová Andrea  (TJ Jiskra Kam. Šenov)"]
[null,"Štolfa Jakub",2003,"Liberec SKST",null,"Štolfa Jakub  (Liberec SKST)"]
[null,"Tarant Tomáš",2007,"Hrádek nad Nisou TTC",null,"Tarant Tomáš  (Hrádek nad Nisou TTC)"]
[null,"Tarantová Eliška",2007,"Hrádek nad Nisou TTC",null,"Tarantová Eliška  (Hrádek nad Nisou TTC)"]
[null,"Vejvoda Viktor",2007,"Liberec SKST",null,"Vejvoda Viktor  (Liberec SKST)"]
[null,"Vele Marek",2008,"Liberec KMST",null,"Vele Marek  (Liberec KMST)"]
[null,"Vogel Jakub",2006,"Liberec SKST",null,{"$f":"B98&\"  \"&\"(\"&D98&\")\"","v":"Vogel Jakub  (Liberec SKST)"}]
[null,"Vogel Matěj",2004,"Liberec SKST",null,"Vogel Matěj  (Liberec SKST)"]
[null,"Vondrák Michal",2003,"Turnov Sokol",null,"Vondrák Michal  (Turnov Sokol)"]
[null,"Vrběcký Daniel",2005,"Jablonec Bižuterie",null,"Vrběcký Daniel  (Jablonec Bižuterie)"]
[null,"Vyhlídko Jan",2005,"TJ Spartak Smržovka",null,"Vyhlídko Jan  (TJ Spartak Smržovka)"]
[null,"Waldhauser Štěpán",2004,"Liberec SKST",null,"Waldhauser Štěpán  (Liberec SKST)"]
[null,"Weiser Tomáš",2006,"Liberec SKST",null,"Weiser Tomáš  (Liberec SKST)"]
[null,"Wolf Filip",2008,"Liberec SKST",null,"Wolf Filip  (Liberec SKST)"]
[null,"Závěťová Lucie",2004,"Frýdlant  ST",null,"Závěťová Lucie  (Frýdlant  ST)"]
[null,"Žagan Štěpán",2007,"Liberec SKST",null,"Žagan Štěpán  (Liberec SKST)"]
[null,"Žmuda Petr",2007,"Liberec SKST",null,"Žmuda Petr  (Liberec SKST)"]

{"sheet":"makro","index":4,"n_rows":0,"n_cols":0,"rows_kept":0,"cut":false,"hidden":true,"merged":[]}